fUSD/lending_fUSD_20251225
["ID","MTS","AMOUNT","RATE_DAILY","PERIOD"]
[399712311,1766631137708,-500.0,0.00036438,11]
[399712312,1766631137719,-500.0,0.00036438,11]
[399712313,1766631137729,-566.13,0.00036438,11]
[399712314,1766631137739,-500.0,0.00036438,11]
[399712315,1766631137750,-509.97,0.00036438,11]
[399712316,1766631137759,-500.0,0.00036438,11]
[399712317,1766631137769,-876.11,0.00036438,11]
[399712318,1766631137779,-500.0,0.00036438,11]
[399712319,1766631137790,-500.0,0.00036438,11]
[399712320,1766631137803,-500.0,0.00036438,11]
[399712321,1766631137812,-500.0,0.00036438,11]
[399712322,1766631137822,-536.03,0.00036438,11]
[399712323,1766631137837,-632.57,0.00036438,11]
[399712324,1766631137848,-500.0,0.00036438,11]
[399712325,1766631137858,-357.42705543,0.00036438,2]
[399712326,1766631137868,-269.67687389,0.00036438,11]
[399712327,1766631137879,-500.0,0.00036438,11]
[399712328,1766631137890,-998.82,0.00036438,11]
[399712329,1766631137901,-500.0,0.00036438,11]
[399712330,1766631137912,-553.32007891,0.00036438,11]
[399712331,1766631137922,-500.0,0.00036438,11]
[399712332,1766631137933,-500.0,0.00036438,11]
[399712333,1766631137943,-500.0,0.00036438,11]
[399712334,1766631137954,-500.0,0.00036438,11]
[399712335,1766631137965,-500.0,0.00036438,11]
[399712336,1766631137976,-646.63,0.00036438,11]
[399712337,1766631137987,-415.26547602,0.00036438,11]
[399712338,1766631137998,-500.0,0.00036438,11]
[399712339,1766631138008,-500.0,0.00036438,11]
[399712340,1766631138019,-572.07,0.00036438,11]
[399712341,1766631138030,-500.0,0.00036438,11]
[399712342,1766631138040,-517.19998012,0.00036438,11]
[399712343,1766631138051,-642.5,0.00036438,11]
[399712344,1766631138062,-574.86,0.00036438,11]
[399712345,1766631138073,-642.68,0.00036438,11]
[399712346,1766631138084,-1734.97,0.00036438,11]
[399712347,1766631138094,-500.0,0.00036438,11]
[399712348,1766631138105,-500.0,0.00036438,11]
[399712349,1766631138115,-500.0,0.00036438,11]
[399712350,1766631138127,-564.76,0.00036438,11]
[399712351,1766631138137,-535.89662293,0.00036438,11]
[399712352,1766631138148,-500.0,0.00036438,11]
[399712353,1766631138158,-251.82400438,0.00036438,11]
[399712354,1766631138168,-500.0,0.00036438,11]
[399712355,1766631138179,-500.0,0.00036438,11]
[399712356,1766631138190,-543.77,0.00036438,11]
[399712357,1766631138201,-500.0,0.00036438,11]
[399712358,1766631138212,-500.0,0.00036438,11]
[399712359,1766631138223,-609.66,0.00036438,11]
[399712360,1766631138236,-500.0,0.00036438,11]
[399712361,1766631138247,-500.0,0.00036438,11]
[399712362,1766631138258,-500.0,0.00036438,11]
[399712363,1766631138268,-500.0,0.00036438,11]
[399712364,1766631138279,-657.18,0.00036438,11]
[399712365,1766631138291,-543.46,0.00036438,11]
[399712366,1766631138301,-500.0,0.00036438,11]
[399712367,1766631138314,-500.0,0.00036438,11]
[399712368,1766631138324,-500.0,0.00036438,11]
[399712369,1766631138335,-538.84735464,0.00036438,11]
[399712370,1766631138346,-974.52,0.00036438,11]
[399712371,1766631138356,-597.79,0.00036438,11]
[399712372,1766631138367,-511.3,0.00036438,11]
[399712373,1766631138378,-500.0,0.00036438,11]
[399712374,1766631138390,-500.0,0.00036438,11]
[399712375,1766631138400,-500.0,0.00036438,11]
[399712376,1766631138412,-592.68,0.00036438,11]
[399712377,1766631138423,-500.0,0.00036438,11]
[399712378,1766631138434,-519.26,0.00036438,11]
[399712379,1766631138445,-352.37,0.00036438,2]
[399712380,1766631138456,-500.0,0.00036438,11]
[399712381,1766631138466,-421.39,0.00036438,2]
[399712382,1766631138477,-500.0,0.00036438,11]
[399712383,1766631138487,-500.0,0.00036438,11]
[399712384,1766631138498,-500.0,0.00036438,11]
[399712385,1766631138508,-500.0,0.00036438,11]
[399712386,1766631138519,-500.0,0.00036438,2]
[399712387,1766631138529,-500.0,0.00036438,11]
[399712388,1766631138539,-953.97,0.00036438,11]
[399712389,1766631138550,-2740.45,0.00036438,11]
[399712390,1766631138560,-500.0,0.00036438,11]
[399712391,1766631138571,-500.0,0.00036438,30]
[399712392,1766631138581,-524.99,0.00036438,11]
[399712393,1766631138592,-500.0,0.00036438,11]
[399712394,1766631138602,-500.0,0.00036438,11]
[399712395,1766631138614,-500.0,0.00036438,11]
[399712396,1766631138624,-500.0,0.00036438,11]
[399712397,1766631138636,-705.78,0.00036438,11]
[399712398,1766631138646,-555.98,0.00036438,11]
[399712399,1766631138657,-500.0,0.00036438,11]
[399712400,1766631138668,-500.0,0.00036438,11]
[399712401,1766631138680,-737.49,0.00036438,11]
[399712402,1766631138691,-518.13,0.00036438,11]
[399712403,1766631138701,-500.0,0.00036438,11]
[399712404,1766631138711,-580.51,0.00036438,11]
[399712405,1766631138721,-560.48,0.00036438,11]
[399712406,1766631138731,-727.69,0.00036438,11]
[399712407,1766631138740,-500.0,0.00036438,11]
[399712408,1766631138750,-536.36,0.00036438,11]
[399712409,1766631138761,-500.0,0.00036438,11]
[399712410,1766631138770,-514.27,0.00036438,11]
[399712411,1766631138780,-500.0,0.00036438,11]
[399712412,1766631138791,-500.0,0.00036438,11]
[399712413,1766631138801,-500.0,0.00036438,11]
[399712414,1766631138813,-500.0,0.00036438,11]
[399712415,1766631138823,-500.0,0.00036438,11]
[399712416,1766631138833,-500.0,0.00036438,11]
[399712417,1766631138844,-500.0,0.00036438,11]
[399712418,1766631138855,-500.0,0.00036438,11]
[399712419,1766631138866,-14053.25,0.00036438,5]
[399712420,1766631138876,-804.57,0.00036438,2]
[399712421,1766631138887,-500.0,0.00036438,11]
[399712422,1766631138897,-656.28,0.00036438,11]
[399712423,1766631138907,-6094.52,0.000365,2]
[399712424,1766631138918,-357.6762453,0.0003653,2]
[399712425,1766631138929,-416.03518578,0.0003653,2]
[399712426,1766631138940,-1242.65,0.00036548,2]
[399712427,1766631138950,-953.0,0.00036694,2]
[399712428,1766631138961,-1000.0,0.00036703,7]
[399712429,1766631138971,-500.0,0.00036712,11]
[399712430,1766631138981,-599.94546314,0.00036712,11]
[399712431,1766631138991,-714.65,0.00036712,7]
[399712432,1766631139001,-500.0,0.00036712,11]
[399712433,1766631139011,-1367.09,0.00036712,11]
[399712434,1766631139021,-1354.83,0.00036712,2]
[399712435,1766631139031,-504.90690928,0.00036712,11]
[399712436,1766631139040,-641.85,0.00036712,10]
[399712437,1766631139050,-500.0,0.00036712,11]
[399712438,1766631139059,-500.0,0.00036712,11]
[399712439,1766631139070,-505.07,0.00036712,2]
[399712440,1766631139080,-500.0,0.00036712,11]
[399712441,1766631139090,-500.0,0.00036712,11]
[399712442,1766631139102,-573.17,0.00036712,11]
[399712443,1766631139112,-500.0,0.00036712,11]
[399712444,1766631139124,-500.0,0.00036712,11]
[399712445,1766631139135,-500.0,0.00036712,11]
[399712446,1766631139145,-500.0,0.00036712,11]
[399712447,1766631139155,-351.96085974,0.00036712,11]
[399712448,1766631139166,-500.0,0.00036712,11]
[399712449,1766631139177,-500.0,0.00036712,11]
[399712450,1766631139188,-3742.25,0.00036712,11]
[399712451,1766631139200,-500.0,0.00036712,11]
[399712452,1766631139211,-500.0,0.00036712,11]
[399712453,1766631139221,-639.08,0.00036712,11]
[399712454,1766631139234,-500.0,0.00036712,11]
[399712455,1766631139246,-500.0,0.00036712,11]
[399712456,1766631139256,-500.0,0.00036712,11]
[399712457,1766631139267,-500.0,0.00036712,11]
[399712458,1766631139279,-500.0,0.00036712,11]
[399712459,1766631139288,-566.13,0.00036712,11]
[399712460,1766631139298,-500.0,0.00036712,11]
[399712461,1766631139306,-509.97,0.00036712,11]
[399712462,1766631139314,-500.0,0.00036712,11]
[399712463,1766631139323,-876.11,0.00036712,11]
[399712464,1766631139331,-500.0,0.00036712,11]
[399712465,1766631139338,-500.0,0.00036712,11]
[399712466,1766631139345,-500.0,0.00036712,11]
[399712467,1766631139353,-500.0,0.00036712,11]
[399712468,1766631139360,-536.03,0.00036712,11]
[399712469,1766631139369,-632.57,0.00036712,11]
[399712470,1766631139377,-500.0,0.00036712,11]
[399712471,1766631139386,-171.80238299,0.00036712,11]
[399712472,1766631139395,-998.82,0.00036712,11]
[399712473,1766631139404,-500.0,0.00036712,11]
[399712474,1766631139413,-500.0,0.00036712,11]
[399712475,1766631139424,-500.0,0.00036712,11]
[399712476,1766631139434,-500.0,0.00036712,11]
[399712477,1766631139444,-500.0,0.00036712,11]
[399712478,1766631139454,-500.0,0.00036712,11]
[399712479,1766631139464,-646.63,0.00036712,11]
[399712480,1766631139474,-500.0,0.00036712,11]
[399712481,1766631139485,-276.58229772,0.00036712,11]
[399712482,1766631139495,-572.07,0.00036712,11]
[399712483,1766631139505,-642.5,0.00036712,11]
[399712484,1766631139515,-574.86,0.00036712,11]
[399712485,1766631139525,-642.68,0.00036712,11]
[399712486,1766631139536,-1734.97,0.00036712,11]
[399712487,1766631139546,-500.0,0.00036712,11]
[399712488,1766631139556,-500.0,0.00036712,11]
[399712489,1766631139567,-564.76,0.00036712,11]
[399712490,1766631139576,-500.0,0.00036712,11]
[399712491,1766631139586,-500.0,0.00036712,11]
[399712492,1766631139595,-500.0,0.00036712,11]
[399712493,1766631139606,-543.77,0.00036712,11]
[399712494,1766631139615,-500.0,0.00036712,11]
[399712495,1766631139626,-500.0,0.00036712,11]
[399712496,1766631139636,-609.66,0.00036712,11]
[399712497,1766631139646,-500.0,0.00036712,11]
[399712498,1766631139656,-500.0,0.00036712,11]
[399712499,1766631139666,-500.0,0.00036712,11]
[399712500,1766631139676,-500.0,0.00036712,11]
[399712501,1766631139686,-657.18,0.00036712,11]
[399712502,1766631139696,-543.46,0.00036712,11]
[399712503,1766631139705,-500.0,0.00036712,11]
[399712504,1766631139715,-500.0,0.00036712,11]
[399712505,1766631139725,-500.0,0.00036712,11]
[399712506,1766631139735,-974.52,0.00036712,11]
[399712507,1766631139744,-597.79,0.00036712,11]
[399712508,1766631139754,-511.3,0.00036712,11]
[399712509,1766631139764,-599.25197776,0.00036712,11]
[399712510,1766631139774,-500.0,0.00036712,11]
[399712511,1766631139783,-500.0,0.00036712,11]
[399712512,1766631139793,-592.68,0.00036712,11]
[399712513,1766631139803,-500.0,0.00036712,11]
[399712514,1766631139812,-519.26,0.00036712,11]
[399712515,1766631139822,-352.37,0.00036712,2]
[399712516,1766631139832,-500.0,0.00036712,11]
[399712517,1766631139842,-421.39,0.00036712,2]
[399712518,1766631139852,-500.0,0.00036712,11]
[399712519,1766631139862,-500.0,0.00036712,11]
[399712520,1766631139871,-500.0,0.00036712,11]
[399712521,1766631139880,-500.0,0.00036712,11]
[399712522,1766631139891,-500.0,0.00036712,2]
[399712523,1766631139901,-500.0,0.00036712,11]
[399712524,1766631139911,-953.97,0.00036712,11]
[399712525,1766631139922,-2740.45,0.00036712,11]
[399712526,1766631139932,-500.0,0.00036712,11]
[399712527,1766631139942,-500.0,0.00036712,30]
[399712528,1766631139951,-524.99,0.00036712,11]
[399712529,1766631139961,-242.56628559,0.00036712,11]
[399712530,1766631139972,-500.0,0.00036712,11]
[399712531,1766631139981,-500.0,0.00036712,11]
[399712532,1766631139991,-500.0,0.00036712,11]
[399712533,1766631140001,-705.78,0.00036712,11]
[399712534,1766631140011,-555.98,0.00036712,11]
[399712535,1766631140020,-500.0,0.00036712,11]
[399712536,1766631140031,-433.98616786,0.00036712,11]
[399712537,1766631140041,-737.49,0.00036712,11]
[399712538,1766631140051,-518.13,0.00036712,11]
[399712539,1766631140064,-500.0,0.00036712,11]
[399712540,1766631140074,-580.51,0.00036712,11]
[399712541,1766631140084,-560.48,0.00036712,11]
[399712542,1766631140094,-727.69,0.00036712,11]
[399712543,1766631140104,-500.0,0.00036712,11]
[399712544,1766631140114,-536.36,0.00036712,11]
[399712545,1766631140123,-514.27,0.00036712,11]
[399712546,1766631140133,-500.0,0.00036712,11]
[399712547,1766631140144,-500.0,0.00036712,11]
[399712548,1766631140154,-500.0,0.00036712,11]
[399712549,1766631140164,-500.0,0.00036712,11]
[399712550,1766631140173,-500.0,0.00036712,11]
[399712551,1766631140183,-500.0,0.00036712,11]
[399712552,1766631140193,-500.0,0.00036712,11]
[399712553,1766631140203,-500.0,0.00036712,11]
[399712554,1766631140213,-14053.25,0.00036712,5]
[399712555,1766631140222,-804.57,0.00036712,2]
[399712556,1766631140234,-500.0,0.00036712,11]
[399712557,1766631140245,-656.28,0.00036712,11]
[399712558,1766631140255,-166.1,0.000369,14]
[399712559,1766631140264,-200667.63586478,0.000369,2]
[399712560,1766631140275,-1000.0,0.00036931,7]
[399712561,1766631140286,-500.0,0.00036986,11]
[399712562,1766631140295,-714.65,0.00036986,7]
[399712563,1766631140305,-500.0,0.00036986,11]
[399712564,1766631140317,-1367.09,0.00036986,11]
[399712565,1766631140327,-1354.83,0.00036986,2]
[399712566,1766631140337,-641.85,0.00036986,10]
[399712567,1766631140348,-280.24949753,0.00036986,11]
[399712568,1766631140358,-500.0,0.00036986,11]
[399712569,1766631140368,-505.07,0.00036986,2]
[399712570,1766631140378,-500.0,0.00036986,11]
[399712571,1766631140388,-500.0,0.00036986,11]
[399712572,1766631140584,-573.17,0.00036986,11]
[399712573,1766631140595,-500.0,0.00036986,11]
[399712574,1766631140605,-500.0,0.00036986,11]
[399712575,1766631140614,-500.0,0.00036986,11]
[399712576,1766631140624,-500.0,0.00036986,11]
[399712577,1766631140635,-500.0,0.00036986,11]
[399712578,1766631140646,-500.0,0.00036986,11]
[399712579,1766631140656,-3742.25,0.00036986,11]
[399712580,1766631140666,-500.0,0.00036986,11]
[399712581,1766631140676,-500.0,0.00036986,11]
[399712582,1766631140686,-639.08,0.00036986,11]
[399712583,1766631140696,-293.26735748,0.00036986,11]
[399712584,1766631140707,-500.0,0.00036986,11]
[399712585,1766631140717,-507.26,0.00036986,11]
[399712586,1766631140727,-500.0,0.00036986,11]
[399712587,1766631140738,-500.0,0.00036986,11]
[399712588,1766631140747,-566.13,0.00036986,11]
[399712589,1766631140757,-508.47497265,0.00036986,11]
[399712590,1766631140770,-509.97,0.00036986,11]
[399712591,1766631140790,-500.0,0.00036986,11]
[399712592,1766631140806,-876.11,0.00036986,11]
[399712593,1766631140816,-500.0,0.00036986,11]
[399712594,1766631140826,-500.0,0.00036986,11]
[399712595,1766631140836,-500.0,0.00036986,11]
[399712596,1766631140846,-500.0,0.00036986,11]
[399712597,1766631140855,-536.03,0.00036986,11]
[399712598,1766631140864,-632.57,0.00036986,11]
[399712599,1766631140875,-500.0,0.00036986,11]
[399712600,1766631140884,-998.82,0.00036986,11]
[399712601,1766631140894,-500.0,0.00036986,11]
[399712602,1766631140904,-500.0,0.00036986,11]
[399712603,1766631140914,-500.0,0.00036986,11]
[399712604,1766631140923,-381.00182915,0.00036986,11]
[399712605,1766631140933,-500.0,0.00036986,11]
[399712606,1766631140943,-500.0,0.00036986,11]
[399712607,1766631140953,-646.63,0.00036986,11]
[399712608,1766631140963,-500.0,0.00036986,11]
[399712609,1766631140973,-572.07,0.00036986,11]
[399712610,1766631140982,-642.5,0.00036986,11]
[399712611,1766631140992,-574.86,0.00036986,11]
[399712612,1766631141002,-642.68,0.00036986,11]
[399712613,1766631141012,-1734.97,0.00036986,11]
[399712614,1766631141022,-332.26167664,0.00036986,11]
[399712615,1766631141032,-500.0,0.00036986,11]
[399712616,1766631141042,-564.76,0.00036986,11]
[399712617,1766631141051,-500.0,0.00036986,11]
[399712618,1766631141061,-500.0,0.00036986,11]
[399712619,1766631141071,-500.0,0.00036986,11]
[399712620,1766631141081,-543.77,0.00036986,11]
[399712621,1766631141091,-500.0,0.00036986,11]
[399712622,1766631141100,-500.0,0.00036986,11]
[399712623,1766631141110,-609.66,0.00036986,11]
[399712624,1766631141120,-500.0,0.00036986,11]
[399712625,1766631141129,-500.0,0.00036986,11]
[399712626,1766631141139,-500.0,0.00036986,11]
[399712627,1766631141149,-509.92939766,0.00036986,11]
[399712628,1766631141159,-657.18,0.00036986,11]
[399712629,1766631141169,-543.46,0.00036986,11]
[399712630,1766631141178,-500.0,0.00036986,11]
[399712631,1766631141188,-500.0,0.00036986,11]
[399712632,1766631141198,-591.12644286,0.00036986,11]
[399712633,1766631141208,-974.52,0.00036986,11]
[399712634,1766631141217,-597.79,0.00036986,11]
[399712635,1766631141227,-511.3,0.00036986,11]
[399712636,1766631141240,-500.0,0.00036986,11]
[399712637,1766631141250,-500.0,0.00036986,11]
[399712638,1766631141260,-592.68,0.00036986,11]
[399712639,1766631141270,-521.64504262,0.00036986,11]
[399712640,1766631141282,-3290.73,0.00036986,120]
[399712641,1766631141292,-519.26,0.00036986,11]
[399712642,1766631141303,-352.37,0.00036986,2]
[399712643,1766631141315,-618.29773135,0.00036986,11]
[399712644,1766631141325,-421.39,0.00036986,2]
[399712645,1766631141335,-500.0,0.00036986,11]
[399712646,1766631141346,-500.0,0.00036986,11]
[399712647,1766631141356,-500.0,0.00036986,11]
[399712648,1766631141370,-500.0,0.00036986,11]
[399712649,1766631141380,-500.0,0.00036986,2]
[399712650,1766631141391,-500.0,0.00036986,11]
[399712651,1766631141401,-953.97,0.00036986,11]
[399712652,1766631141412,-2740.45,0.00036986,11]
[399712653,1766631141423,-500.0,0.00036986,11]
[399712654,1766631141432,-500.0,0.00036986,30]
[399712655,1766631141445,-524.99,0.00036986,11]
[399712656,1766631141455,-500.0,0.00036986,11]
[399712657,1766631141465,-500.0,0.00036986,11]
[399712658,1766631141477,-500.0,0.00036986,11]
[399712659,1766631141487,-705.78,0.00036986,11]
[399712660,1766631141497,-555.98,0.00036986,11]
[399712661,1766631141507,-500.0,0.00036986,11]
[399712662,1766631141519,-737.49,0.00036986,11]
[399712663,1766631141531,-518.13,0.00036986,11]
[399712664,1766631141541,-500.0,0.00036986,11]
[399712665,1766631141551,-580.51,0.00036986,11]
[399712666,1766631141562,-560.48,0.00036986,11]
[399712667,1766631141572,-727.69,0.00036986,11]
[399712668,1766631141582,-500.0,0.00036986,11]
[399712669,1766631141593,-536.36,0.00036986,11]
[399712670,1766631141603,-514.27,0.00036986,11]
[399712671,1766631141613,-500.0,0.00036986,11]
[399712672,1766631141623,-500.0,0.00036986,11]
[399712673,1766631141634,-500.0,0.00036986,11]
[399712674,1766631141643,-356.74455586,0.00036986,11]
[399712675,1766631141654,-500.0,0.00036986,11]
[399712676,1766631141665,-500.0,0.00036986,11]
[399712677,1766631141675,-500.0,0.00036986,11]
[399712678,1766631141684,-500.0,0.00036986,11]
[399712679,1766631141694,-14053.25,0.00036986,5]
[399712680,1766631141703,-804.57,0.00036986,2]
[399712681,1766631141713,-500.0,0.00036986,11]
[399712682,1766631141723,-656.28,0.00036986,11]
[399712683,1766631141734,-1000.0,0.00036994,7]
[399712684,1766631141744,-166.1,0.00037,14]
[399712685,1766631141754,-384.6,0.00037,14]
[399712686,1766631141764,-223.2499621,0.00037,30]
[399712687,1766631141773,-300.0,0.00037037,2]
[399712688,1766631141783,-152.0,0.0003704,4]
[399712689,1766631141793,-953.0,0.00037087,7]
[399712690,1766631141803,-300.0,0.00037089,2]
[399712691,1766631141812,-1000.0,0.00037092,7]
[399712692,1766631141822,-308.47,0.000371,30]
[399712693,1766631141832,-300.0,0.00037102,2]
[399712694,1766631141841,-13127.5,0.00037144,5]
[399712695,1766631141851,-473.0,0.00037161,2]
[399712696,1766631141868,-200.0,0.00037169,10]
[399712697,1766631141892,-24473.7913412,0.00037197,2]
[399712698,1766631141914,-195.93148736,0.000372,120]
[399712699,1766631141938,-195.93148735,0.000372,120]
[399712700,1766631141957,-195.93148735,0.000372,120]
[399712701,1766631141977,-195.93148735,0.000372,120]
[399712702,1766631141999,-195.93148735,0.000372,120]
[399712703,1766631142023,-1000.0,0.000372,7]
[399712704,1766631142045,-473.0,0.00037222,7]
[399712705,1766631142065,-953.0,0.00037258,120]
[399712706,1766631142088,-500.0,0.0003726,11]
[399712707,1766631142108,-714.65,0.0003726,7]
[399712708,1766631142123,-500.0,0.0003726,11]
[399712709,1766631142145,-1367.09,0.0003726,11]
[399712710,1766631142159,-1354.83,0.0003726,2]
[399712711,1766631142180,-641.85,0.0003726,10]
[399712712,1766631142195,-500.0,0.0003726,11]
[399712713,1766631142216,-505.07,0.0003726,2]
[399712714,1766631142235,-500.0,0.0003726,11]
[399712715,1766631142252,-500.0,0.0003726,11]
[399712716,1766631142270,-573.17,0.0003726,11]
[399712717,1766631142290,-500.0,0.0003726,11]
[399712718,1766631142309,-500.0,0.0003726,11]
[399712719,1766631142327,-500.0,0.0003726,11]
[399712720,1766631142345,-500.0,0.0003726,11]
[399712721,1766631142363,-500.0,0.0003726,11]
[399712722,1766631142381,-500.0,0.0003726,11]
[399712723,1766631142399,-3742.25,0.0003726,11]
[399712724,1766631142417,-500.0,0.0003726,11]
[399712725,1766631142437,-537.50117953,0.0003726,11]
[399712726,1766631142454,-639.08,0.0003726,11]
[399712727,1766631142472,-500.0,0.0003726,11]
[399712728,1766631142490,-500.0,0.0003726,11]
[399712729,1766631142508,-360.79216082,0.0003726,11]
[399712730,1766631142526,-566.13,0.0003726,11]
[399712731,1766631142543,-509.97,0.0003726,11]
[399712732,1766631142561,-500.0,0.0003726,11]
[399712733,1766631142579,-876.11,0.0003726,11]
[399712734,1766631142597,-534.15178803,0.0003726,11]
[399712735,1766631142615,-500.0,0.0003726,11]
[399712736,1766631142633,-500.0,0.0003726,11]
[399712737,1766631142649,-500.0,0.0003726,11]
[399712738,1766631142666,-536.03,0.0003726,11]
[399712739,1766631142683,-632.57,0.0003726,11]
[399712740,1766631142700,-500.0,0.0003726,11]
[399712741,1766631142717,-998.82,0.0003726,11]
[399712742,1766631142736,-506.26330748,0.0003726,11]
[399712743,1766631142753,-500.0,0.0003726,11]
[399712744,1766631142770,-500.0,0.0003726,11]
[399712745,1766631142787,-500.0,0.0003726,11]
[399712746,1766631142804,-500.0,0.0003726,11]
[399712747,1766631142823,-646.63,0.0003726,11]
[399712748,1766631142841,-500.0,0.0003726,11]
[399712749,1766631142859,-572.07,0.0003726,11]
[399712750,1766631142876,-642.5,0.0003726,11]
[399712751,1766631142892,-574.86,0.0003726,11]
[399712752,1766631142909,-642.68,0.0003726,11]
[399712753,1766631142928,-1734.97,0.0003726,11]
[399712754,1766631142944,-500.0,0.0003726,11]
[399712755,1766631142962,-564.76,0.0003726,11]
[399712756,1766631142978,-500.0,0.0003726,11]
[399712757,1766631142995,-500.0,0.0003726,11]
[399712758,1766631143012,-500.0,0.0003726,11]
[399712759,1766631143031,-543.77,0.0003726,11]
[399712760,1766631143048,-500.0,0.0003726,11]
[399712761,1766631143065,-500.0,0.0003726,11]
[399712762,1766631143084,-609.66,0.0003726,11]
[399712763,1766631143103,-500.0,0.0003726,11]
[399712764,1766631143121,-348.78406635,0.0003726,11]
[399712765,1766631143139,-310.7919734,0.0003726,11]
[399712766,1766631143157,-657.18,0.0003726,11]
[399712767,1766631143173,-543.46,0.0003726,11]
[399712768,1766631143192,-500.0,0.0003726,11]
[399712769,1766631143209,-500.0,0.0003726,11]
[399712770,1766631143227,-974.52,0.0003726,11]
[399712771,1766631143246,-597.79,0.0003726,11]
[399712772,1766631143268,-511.3,0.0003726,11]
[399712773,1766631143286,-500.0,0.0003726,11]
[399712774,1766631143302,-500.0,0.0003726,11]
[399712775,1766631143320,-592.68,0.0003726,11]
[399712776,1766631143337,-519.26,0.0003726,11]
[399712777,1766631143355,-352.37,0.0003726,2]
[399712778,1766631143373,-421.39,0.0003726,2]
[399712779,1766631143392,-500.0,0.0003726,11]
[399712780,1766631143409,-500.0,0.0003726,11]
[399712781,1766631143426,-500.0,0.0003726,11]
[399712782,1766631143442,-330.73154196,0.0003726,11]
[399712783,1766631143459,-500.0,0.0003726,2]
[399712784,1766631143475,-262.21982596,0.0003726,11]
[399712785,1766631143493,-953.97,0.0003726,11]
[399712786,1766631143511,-2740.45,0.0003726,11]
[399712787,1766631143529,-500.0,0.0003726,11]
[399712788,1766631143545,-509.9590036,0.0003726,30]
[399712789,1766631143563,-524.99,0.0003726,11]
[399712790,1766631143581,-500.0,0.0003726,11]
[399712791,1766631143597,-500.0,0.0003726,11]
[399712792,1766631143615,-500.0,0.0003726,11]
[399712793,1766631143632,-705.78,0.0003726,11]
[399712794,1766631143650,-555.98,0.0003726,11]
[399712795,1766631143669,-500.0,0.0003726,11]
[399712796,1766631143686,-737.49,0.0003726,11]
[399712797,1766631143704,-518.13,0.0003726,11]
[399712798,1766631143722,-500.0,0.0003726,11]
[399712799,1766631143738,-580.51,0.0003726,11]
[399712800,1766631143758,-560.48,0.0003726,11]
[399712801,1766631143775,-727.69,0.0003726,11]
[399712802,1766631143793,-500.0,0.0003726,11]
[399712803,1766631143811,-536.36,0.0003726,11]
[399712804,1766631143829,-514.27,0.0003726,11]
[399712805,1766631143847,-500.0,0.0003726,11]
[399712806,1766631143874,-500.0,0.0003726,11]
[399712807,1766631143893,-257.61807813,0.0003726,11]
[399712808,1766631143912,-500.0,0.0003726,11]
[399712809,1766631143930,-500.0,0.0003726,11]
[399712810,1766631143949,-500.0,0.0003726,11]